bitfinex/quotes_ETHUSD_20250801
["timestamp","ask_amount","ask_price","bid_price","bid_amount"]
[1754072081377,2.80630858,3563.4,3563.3,0.14]
[1754072081686,4.87840858,3563.4,3563.3,0.14]
[1754072082096,9.65940858,3563.4,3563.3,0.14]
[1754072082298,11.18689073,3563.4,3563.3,0.14]
[1754072082960,11.18689073,3563.4,3562.2,4.781]
[1754072082961,0.55,3562.8,3560.6,0.842807]
[1754072083198,2.0721,3563.3,3562.5,0.14]
[1754072083374,0.55,3562.7,3561.5,0.22062283]
[1754072083583,4.779,3562.6,3561.6,2.0373]
[1754072083785,1.6009,3563.0,3561.9,3.0]
[1754072083786,4.779,3562.8,3561.9,3.0]
[1754072084112,2.80678118,3562.8,3562.0,2.0373]
[1754072084314,2.80699767,3562.6,3562.0,2.0373]
[1754072084454,4.779,3562.9,3562.2,3.0]
[1754072084657,1.6009,3563.9,3562.4,6.34366916]
[1754072084868,2.80645631,3563.3,3562.4,3.0]
[1754072085114,6.74,3564.0,3562.5,4.85833652]
[1754072085251,0.001,3563.2,3562.6,3.0]
[1754072085451,4.778,3564.0,3562.9,5.80668945]
[1754072085706,2.8061318,3563.7,3562.9,5.80668945]
[1754072085858,2.80599229,3563.9,3563.2,3.0]
[1754072086053,0.001,3564.2,3563.3,0.01406247]
[1754072086260,4.779,3564.2,3563.3,0.22116875]
[1754072086597,4.779,3564.2,3563.4,5.0691]
[1754072086802,2.80575751,3564.1,3563.5,0.01406011]
[1754072087172,2.80584184,3564.0,3563.5,0.01406011]
[1754072087371,0.001,3564.2,3563.6,5.0691]
[1754072087574,0.001,3564.2,3563.8,3.0]
[1754072087870,0.001,3564.2,3563.9,0.01405223]
[1754072088087,0.001,3564.2,3563.9,2.08315223]
[1754072088252,0.001,3564.2,3564.0,2.0691]
[1754072088655,0.001,3564.2,3564.0,2.08315026]
[1754072088857,1.6333,3565.5,3564.1,5.0691]
[1754072089070,2.80495677,3565.2,3564.3,5.80552606]
[1754072089276,2.80495677,3565.2,3564.4,1.64953846]
[1754072089486,2.80505036,3565.0,3564.4,1.64953846]
[1754072089964,2.80480887,3565.4,3564.4,1.64953846]
[1754072090159,2.80502576,3565.1,3564.4,1.64953846]
[1754072090366,2.80506611,3565.0,3564.4,1.6355]
[1754072090574,0.4326,3565.8,3564.4,1.6355]
[1754072090789,2.80510423,3565.0,3564.4,1.6355]
[1754072091010,4.774,3565.7,3564.5,3.0]
[1754072091011,2.80499016,3565.1,3564.5,3.0]
[1754072091160,2.80506933,3565.0,3564.4,1.6355]
[1754072091499,2.80527442,3564.8,3564.0,4.773]
[1754072091701,0.4326,3565.0,3564.1,3.0]
[1754072092002,2.80575741,3564.1,3563.7,4.773]
[1754072092304,2.80575741,3564.1,3563.8,3.0]
[1754072092504,1.6333,3564.9,3563.8,4.6355]
[1754072092678,0.48709751,3564.8,3563.8,4.6355]
[1754072092877,0.48709751,3564.8,3563.8,1.64954791]
[1754072093094,2.80524534,3564.8,3563.8,1.64954791]
[1754072093296,2.80541936,3564.6,3564.0,3.0]
[1754072093492,2.80539022,3564.6,3563.9,2.80590635]
[1754072093665,2.80498555,3565.1,3564.5,3.14]
[1754072093870,2.80498555,3565.1,3565.0,0.14]
[1754072095105,4.43828555,3565.1,3565.0,0.14]
[1754072095980,2.80491075,3565.2,3565.0,0.14]
[1754072096184,2.8049704,3565.1,3565.0,0.14]
[1754072096798,2.80492138,3565.2,3565.0,0.14]
[1754072097371,4.768,3565.5,3565.0,0.35909692]
[1754072097372,2.8049704,3565.1,3565.0,0.35909692]
[1754072097572,4.768,3565.5,3565.4,0.14]
[1754072097806,2.8049704,3565.1,3565.0,0.14]
[1754072097982,2.80509885,3565.0,3564.5,1.6355]
[1754072098181,2.80491436,3565.2,3565.0,0.14]
[1754072098388,60.0,3573.7,3565.1,3.0]
[1754072098389,1.6333,3565.9,3565.1,3.0]
[1754072098591,4.766,3565.8,3565.0,4.6355]
[1754072098797,4.766,3566.1,3565.3,3.0]
[1754072099120,7.57021144,3566.1,3565.5,2.8046497]
[1754072099328,7.57021144,3566.1,3566.0,0.14]
[1754072100416,1.6333,3566.5,3566.0,0.14]
[1754072100618,2.8042737,3566.0,3565.5,3.0]
[1754072100823,1.6333,3565.9,3563.7,2.8060039]
[1754072100992,0.4326,3565.8,3564.1,2.0691]
[1754072101198,2.80449841,3565.7,3564.1,5.3057435]
[1754072101412,2.80567869,3564.2,3564.1,0.43093772]
[1754072101584,2.80580821,3564.1,3563.4,7.56929525]
[1754072101938,1.6333,3565.1,3564.1,0.14]
[1754072102082,2.80525919,3564.8,3564.2,2.81969805]
[1754072102432,2.8050683,3565.0,3564.3,2.80559786]
[1754072102721,2.80463198,3565.6,3564.7,0.14]
[1754072102892,2.80441809,3565.9,3564.9,2.94507749]
[1754072103219,2.80329751,3567.3,3565.2,3.0]
[1754072103522,2.8040763,3566.3,3565.6,5.80456618]
[1754072103682,7.56602061,3566.4,3565.8,3.0]
[1754072103882,4.762,3566.4,3566.2,0.14]
[1754072104088,2.80402658,3566.3,3566.2,0.14]
[1754072104535,7.1736,3566.7,3566.2,0.14]
[1754072104536,2.80377278,3566.7,3566.2,0.14]
[1754072104725,0.4326,3567.1,3566.2,0.14]
[1754072104878,2.80245831,3568.3,3566.2,0.14]
[1754072104879,7.56424939,3567.3,3566.4,2.80393509]
[1754072105084,2.80345265,3567.1,3566.5,0.01399716]
[1754072105292,4.76,3567.3,3566.6,3.0]
[1754072105293,2.80333802,3567.2,3566.6,3.0]
[1754072105508,2.80341804,3567.1,3567.0,0.14]
[1754072105921,2.80408572,3566.3,3565.6,0.4336]
[1754072106151,2.80424304,3566.1,3565.4,3.0]
[1754072106302,2.80428197,3566.0,3565.3,5.80480461]
[1754072106502,2.80412371,3566.2,3565.3,5.80480461]
[1754072106746,2.80434104,3566.0,3565.3,5.80480461]
[1754072106897,2.80412942,3566.2,3565.3,3.0]
[1754072107103,2.80426677,3566.0,3565.3,5.80481135]
[1754072107314,1.6333,3566.4,3565.3,3.0]
[1754072107520,1.6333,3566.4,3565.2,0.2056563]
[1754072107521,2.80481305,3565.3,3565.2,0.2056563]
[1754072107838,1.6333,3565.3,3564.5,4.758]
[1754072108010,7.56258344,3565.6,3564.8,3.0]
[1754072108011,2.80469428,3565.5,3564.8,3.0]
[1754072108222,2.80489761,3565.2,3564.5,7.56341969]
[1754072108528,4.757,3566.0,3565.3,3.0]
[1754072108837,2.80443776,3565.8,3565.1,3.0]
[1754072109139,4.757,3566.0,3565.4,3.0]
[1754072109510,2.80464495,3565.6,3565.2,0.20695477]
[1754072109702,2.0659,3565.9,3565.0,3.0]
[1754072109897,7.56131447,3566.0,3564.6,5.80535188]
[1754072109898,2.0659,3565.8,3564.6,5.80535188]
[1754072110197,2.0659,3565.7,3564.4,4.756]
[1754072110401,1.6333,3565.6,3564.7,2.80523631]
[1754072110638,1.6333,3566.2,3564.9,3.0]
[1754072110802,2.80426408,3566.0,3565.3,2.80475447]
[1754072110998,2.80435897,3565.9,3565.3,1.6355]
[1754072111804,3.23651895,3566.5,3565.3,1.6355]
[1754072111805,1.6333,3566.9,3565.6,3.0]
[1754072112138,4.755,3567.1,3565.9,0.55]
[1754072112340,4.755,3567.1,3566.0,2.80426247]
[1754072112513,0.001,3567.1,3567.0,3.0]
[1754072112914,0.001,3567.1,3567.0,6.00596156]
[1754072113116,0.001,3567.1,3567.0,0.20248525]
[1754072113363,0.001,3567.1,3566.6,1.6355]
[1754072113565,0.001,3567.1,3567.0,3.0]
[1754072113768,2.80439771,3567.1,3567.0,3.0]
[1754072114067,8.11816806,3567.1,3567.0,3.0]
[1754072114435,10.18406806,3567.1,3567.0,3.0]
[1754072115070,2.80424145,3566.1,3565.4,1.6355]
[1754072115371,2.80424145,3566.1,3565.4,4.44022371]
[1754072115566,4.752,3566.4,3565.7,2.80444955]
[1754072115865,7.55595636,3566.4,3566.0,0.14]
[1754072116076,2.8041196,3566.2,3565.4,0.21121699]
[1754072116275,7.55594795,3566.4,3566.3,0.14]
[1754072116443,4.75,3566.9,3566.3,1.562]
[1754072116645,2.80433298,3566.0,3565.6,1.562]
[1754072116844,0.60948147,3566.9,3565.4,0.21194984]
[1754072116845,4.75,3566.4,3565.4,0.21194984]
[1754072117078,3.23691058,3566.0,3565.3,2.80481037]
[1754072117265,3.23691058,3566.0,3565.2,1.562]
[1754072117266,4.75,3566.3,3565.2,1.562]
[1754072117433,4.75,3566.4,3565.9,0.14]
[1754072117637,4.75,3566.4,3565.5,3.0]
[1754072117854,4.75,3566.4,3565.2,0.2143621]
[1754072117855,2.80474138,3565.4,3565.2,0.2143621]
[1754072118064,2.80476268,3565.4,3564.7,2.80526767]
[1754072118282,3.23733439,3565.4,3565.3,0.14]
[1754072118767,2.80544255,3564.5,3563.4,1.77129977]
[1754072118929,0.1,3564.0,3562.5,5.269986]
[1754072119130,0.1,3564.0,3562.5,3.33066142]
[1754072119131,0.1,3563.6,3562.5,3.33066142]
[1754072119352,0.1,3563.6,3563.0,2.80655025]
[1754072119574,0.1,3563.6,3563.5,0.14]
[1754072120182,0.5326,3563.6,3563.5,0.14]
[1754072120476,0.1,3563.6,3563.5,0.14]
[1754072121050,0.1,3564.0,3563.5,0.34989885]
[1754072121251,0.1,3563.6,3563.5,3.0]
[1754072121481,0.1,3563.7,3563.6,3.0]
[1754072121678,0.1,3563.2,3563.0,0.21019135]
[1754072121872,0.1,3563.2,3562.1,1.886]
[1754072121873,0.1,3563.2,3562.8,2.80676964]
[1754072122074,0.1,3563.2,3563.1,0.14]
[1754072122975,2.8412541,3563.6,3563.1,0.14]
[1754072123175,0.1,3563.2,3563.1,0.14]
[1754072123377,0.1,3563.2,3563.0,0.20702095]
[1754072123550,0.1,3563.2,3563.1,0.14]
[1754072124374,0.1,3563.5,3563.2,3.0]
[1754072124561,0.1,3563.2,3563.1,0.35058833]
[1754072124761,2.80607263,3563.7,3563.4,0.14]
[1754072124969,0.1,3563.3,3563.1,0.35058833]
[1754072125146,0.1,3563.3,3563.1,0.21058833]
[1754072125477,0.1,3563.3,3563.2,0.14]
[1754072125774,5.97924586,3564.0,3563.2,0.14]
[1754072125775,0.4326,3564.0,3563.2,0.14]
[1754072125982,0.1,3563.3,3563.2,0.14]
[1754072126149,0.1,3563.3,3563.0,0.20474349]
[1754072126344,0.1,3563.3,3563.2,0.14]
[1754072126584,0.1,3563.4,3563.2,0.14]
[1754072126765,0.1,3563.4,3563.0,5.80657104]
[1754072126958,0.1,3563.4,3563.3,0.14]
[1754072128179,3.33890858,3563.4,3563.3,0.14]
[1754072129177,3.98850014,3563.4,3563.3,0.14]
[1754072129563,3.95342129,3563.4,3563.3,0.14]
[1754072129772,8.69742129,3563.4,3563.3,0.14]
[1754072129970,0.5326,3563.4,3563.3,0.14]
[1754072130866,4.744,3563.5,3563.3,0.14]
[1754072131064,0.1,3563.4,3563.3,0.14]
[1754072132662,0.1,3563.4,3563.3,3.14]
[1754072132868,4.743,3563.5,3563.3,0.14]
[1754072133187,0.1,3563.4,3563.3,3.14]
[1754072133490,0.1,3563.4,3563.3,0.14]
[1754072135288,4.10381695,3563.4,3563.3,0.14]
[1754072135498,2.90646609,3563.2,3563.1,0.002]
[1754072135957,3.37414691,3563.2,3563.1,0.002]
[1754072136355,0.1,3561.4,3560.9,0.208924]
[1754072136555,0.1,3561.4,3560.5,6.739]
[1754072136556,0.1,3561.4,3561.3,2.80794302]
[1754072136879,0.1,3561.7,3561.3,0.20898472]
[1754072137080,0.1,3561.4,3561.1,2.8080724]
[1754072137385,0.1,3561.4,3561.2,3.0]
[1754072137556,0.1,3561.4,3561.3,2.80796338]
[1754072137752,0.1,3561.6,3561.2,5.80801486]
[1754072137958,0.1,3561.4,3561.2,5.80801486]
[1754072138354,0.1,3561.4,3560.9,3.01597279]
[1754072138587,0.1,3561.4,3560.6,0.324]
[1754072138588,0.1,3561.4,3560.3,4.741]
[1754072138792,0.1,3561.8,3561.7,2.80764803]
[1754072139091,4.739,3562.2,3561.8,3.0]
[1754072139292,3.23931295,3562.9,3561.8,2.82162888]
[1754072139622,0.1,3562.2,3562.0,3.0]
[1754072139767,2.90695618,3562.6,3562.0,3.0]
[1754072139966,0.1,3562.2,3562.0,3.0]
[1754072140162,4.738,3562.8,3562.1,2.80726862]
[1754072140390,4.738,3562.8,3562.2,3.0]
[1754072140700,0.1,3562.2,3561.1,3.0]
[1754072140861,0.1,3561.6,3560.9,0.2021739]
[1754072141188,0.1,3561.4,3560.7,2.8083721]
[1754072141495,0.1,3561.0,3560.8,3.0]
[1754072141657,0.1,3561.0,3560.7,0.2096874]
[1754072141857,0.1,3561.0,3560.3,3.21456416]
[1754072142058,0.1,3561.0,3560.6,2.80851541]
[1754072142258,0.1,3561.0,3560.8,3.0]
[1754072142458,0.1,3561.0,3560.7,5.80836704]
[1754072142688,0.1,3561.0,3560.6,2.80850323]
[1754072143187,0.1,3561.0,3560.9,2.8082788]
[1754072143407,0.1,3561.0,3560.8,3.0]
[1754072143690,0.1,3561.0,3560.9,2.8082788]
[1754072143867,0.1,3561.0,3560.9,5.8082788]
[1754072144060,0.1,3561.9,3561.0,3.0]
[1754072144260,4.736,3562.3,3561.7,3.0]
[1754072144493,4.736,3562.3,3561.8,2.80756506]
[1754072144793,4.736,3562.3,3561.6,3.0]
[1754072144993,0.1,3562.1,3561.3,3.0]
[1754072145195,0.1,3562.1,3561.8,2.8075499]
[1754072145373,0.1,3561.9,3561.6,3.0]
[1754072145572,0.1,3561.9,3561.8,2.80750239]
[1754072145770,0.1,3561.9,3561.8,0.14]
[1754072146295,4.835,3561.9,3561.8,0.14]
[1754072146498,5.292,3561.9,3561.8,0.14]
[1754072146866,9.2252536,3561.9,3561.8,0.14]
[1754072147066,9.19015998,3561.9,3561.8,0.14]
[1754072149364,9.19015998,3561.9,3561.8,0.13310831]
[1754072149919,0.1,3561.9,3561.8,0.13310831]
[1754072150069,4.733,3561.9,3561.8,0.14]
[1754072150267,4.833,3561.9,3561.8,0.14]
[1754072150678,4.733,3561.9,3561.8,0.14]
[1754072150912,4.833,3561.9,3561.8,0.14]
[1754072151113,4.832,3561.9,3561.8,0.14]
[1754072151467,8.30815787,3561.9,3561.8,0.14]
[1754072151669,4.03315787,3561.9,3561.8,0.14]
[1754072151897,8.76515787,3561.9,3561.8,0.14]
[1754072152101,10.49805787,3561.9,3561.8,0.14]
[1754072152284,4.03315787,3561.9,3561.8,0.14]
[1754072152582,8.66415787,3561.9,3561.8,0.14]
[1754072152781,0.457,3562.3,3561.8,0.14]
[1754072152981,2.90749038,3561.9,3561.8,0.14]
[1754072153195,4.831,3561.9,3561.8,0.14]
[1754072153583,0.1,3561.9,3561.5,3.0]
[1754072153782,0.1,3561.9,3561.8,0.14]
[1754072153982,4.83,3561.9,3561.8,0.14]
[1754072154174,7.63749038,3561.9,3561.8,0.14]
[1754072154364,9.13897318,3561.9,3561.8,0.14]
[1754072154811,4.40897318,3561.9,3561.8,0.14]
[1754072155011,4.83,3561.9,3561.8,0.14]
[1754072155243,0.1,3561.9,3561.8,0.14]
[1754072155484,0.1,3561.4,3560.3,0.21456416]
[1754072155760,0.1,3560.1,3560.0,0.2064504]
[1754072155925,0.1,3560.1,3559.3,4.729]
[1754072156109,0.1,3560.3,3559.2,3.0]
[1754072156469,0.1,3560.1,3559.4,3.0]
[1754072156678,0.1,3559.9,3559.2,0.41523722]
[1754072156946,2.80962013,3559.2,3559.1,0.21335986]
[1754072157146,0.1,3559.1,3558.7,4.728]
[1754072157351,0.1,3559.1,3558.8,3.0]
[1754072157715,2.90972923,3559.1,3558.4,3.0]
[1754072157912,0.1,3559.1,3558.5,10.95305041]
[1754072158111,0.1,3559.1,3558.3,2.81025576]
[1754072158310,0.1,3559.1,3558.4,7.728]
[1754072158506,0.1,3559.4,3558.5,3.414896]
[1754072158810,0.1,3558.9,3558.5,8.913747]
[1754072159035,0.1,3558.9,3558.4,0.21189912]
[1754072159225,0.1,3558.9,3557.9,0.55]
[1754072159421,4.728,3559.9,3558.4,2.122206]
[1754072159635,0.1,3559.4,3558.8,2.80993536]
[1754072159842,0.1,3559.4,3558.6,3.0]
[1754072160110,0.1,3559.1,3558.8,3.0]
[1754072160337,0.1,3559.1,3558.6,2.81001645]
[1754072160648,0.55,3560.8,3558.6,23.93800059]
[1754072160847,0.457,3561.4,3560.4,2.80863228]
[1754072161052,10.0,3561.6,3560.8,3.0]
[1754072161348,2.80786205,3561.5,3560.7,3.0]
[1754072161553,2.80801853,3561.3,3560.4,3.0]
[1754072161716,2.80778373,3561.6,3560.8,3.0]
[1754072161915,2.80792373,3561.4,3560.6,3.0]
[1754072162149,3.88756986,3561.6,3560.2,4.727]
[1754072162150,1.07983672,3561.6,3560.4,3.0]
[1754072162328,3.26465361,3561.7,3560.7,3.0]
[1754072162646,0.457,3561.7,3560.5,5.80852441]
[1754072162808,2.80784647,3561.5,3560.7,3.0]
[1754072163007,3.26465618,3561.7,3560.6,5.80851362]
[1754072163008,3.26467321,3561.7,3560.6,5.80851362]
[1754072163211,0.457,3561.7,3560.6,3.0]
[1754072163450,2.80793578,3561.4,3560.6,3.0]
[1754072163979,0.9753,3561.7,3559.6,2.80923523]
[1754072163980,1.007,3561.3,3559.6,2.80923523]
[1754072164271,7.24622659,3562.0,3559.6,2.80923523]
[1754072164272,0.457,3562.0,3560.7,3.0]
[1754072164474,0.457,3562.0,3560.7,7.725]
[1754072164615,10.457,3562.5,3561.7,3.0]
[1754072164963,10.457,3562.5,3561.4,3.0]
[1754072165163,0.457,3562.5,3561.7,2.80762913]
[1754072165348,3.26407291,3562.5,3561.7,3.0]
[1754072165665,1.53650168,3562.4,3561.7,0.21156263]
[1754072166077,0.457,3563.3,3562.3,0.14]
[1754072166357,2.80669832,3563.0,3562.3,0.14]
[1754072166568,3.26370563,3562.9,3562.1,3.0]
[1754072166746,4.725,3563.4,3562.0,3.0]
[1754072166915,4.725,3563.4,3561.7,0.20613316]
[1754072166916,0.457,3563.3,3562.8,0.14]
[1754072167114,0.457,3563.3,3561.7,3.01374795]
[1754072167115,2.8065963,3563.1,3562.3,3.0]
[1754072167375,3.78167898,3563.2,3563.0,0.14]
[1754072167658,3.26354486,3563.1,3563.0,0.14]
[1754072167958,0.457,3563.1,3563.0,0.14]
[1754072168268,3.26354486,3563.1,3563.0,0.14]
[1754072168551,4.39486403,3563.1,3563.0,0.14]
[1754072170229,6.12776403,3563.1,3563.0,0.14]
[1754072170982,6.12776403,3563.1,3561.3,2.80795259]
[1754072170983,6.67776403,3563.1,3561.4,3.0]
[1754072171182,6.67776403,3563.1,3561.3,0.20475674]
[1754072171183,2.8067024,3562.9,3560.4,7.176312]
[1754072171436,2.80750245,3561.9,3561.0,2.80813589]
[1754072171742,4.721,3562.0,3561.1,3.0]
[1754072171890,2.80749052,3561.9,3561.0,6.22602766]
[1754072172090,7.52841156,3562.0,3561.9,0.14]
[1754072172401,4.721,3562.0,3561.8,0.14]
[1754072172617,5.1931,3562.0,3561.8,0.14]
[1754072172928,3.26449038,3561.9,3561.8,0.14]
[1754072173797,2.80786058,3561.5,3560.1,0.20950721]
[1754072173993,2.80796393,3561.3,3560.3,3.0]
[1754072174212,0.457,3561.2,3560.1,0.21099975]
[1754072174392,0.457,3561.2,3559.5,2.445014]
[1754072174393,0.5176,3561.1,3559.5,0.843314]
[1754072174596,2.80938334,3559.5,3559.4,0.002]
[1754072174801,7.56343061,3559.6,3559.4,0.002]
[1754072175007,2.84450063,3559.5,3559.4,0.1428]
[1754072175210,3.30150063,3559.5,3559.4,0.1428]
[1754072175417,4.34936114,3559.5,3559.4,0.1428]
[1754072175845,6.05097843,3559.5,3559.4,0.1428]
[1754072176153,6.56586114,3559.5,3559.4,0.1428]
[1754072176296,4.34936114,3559.5,3559.4,0.1428]
[1754072176498,9.06736114,3559.5,3559.4,0.1428]
[1754072178617,6.2579778,3559.5,3559.4,0.1428]
[1754072178826,7.98438334,3559.5,3559.4,0.1428]
[1754072179341,5.175,3559.5,3559.4,0.1428]
[1754072179720,7.98438334,3559.5,3559.4,0.1428]
[1754072180216,8.53438334,3559.5,3559.4,0.1428]
[1754072180547,10.20088334,3559.5,3559.4,0.002]
[1754072180835,2.80969908,3559.1,3559.0,0.002]
[1754072181037,8.07769908,3559.1,3559.0,0.002]
[1754072181251,8.52469908,3559.1,3559.0,0.002]
[1754072181625,10.19119908,3559.1,3559.0,0.002]
[1754072181937,11.91304016,3559.1,3559.0,0.002]
[1754072182528,6.74604108,3559.1,3559.0,0.002]
[1754072182727,5.165,3559.1,3559.0,0.002]
[1754072182930,4.718,3559.1,3559.0,0.002]
[1754072183566,7.97469908,3559.1,3559.0,0.002]
[1754072183713,0.997,3559.6,3559.0,0.002]
[1754072183915,0.55,3559.4,3559.0,0.002]
[1754072184154,2.80969908,3559.1,3559.0,0.002]
[1754072184314,5.30212123,3559.1,3559.0,0.002]
[1754072184515,5.164,3559.1,3559.0,0.002]
[1754072184733,4.717,3559.1,3559.0,0.002]
[1754072184935,5.164,3559.1,3559.0,0.002]
[1754072185262,0.55,3557.2,3554.3,4.51124768]
[1754072185569,0.55,3557.0,3556.7,0.1408]
[1754072185766,0.55,3556.8,3555.0,2.81286565]
[1754072185975,5.164,3556.7,3556.5,0.1408]
[1754072186268,3.80867407,3556.6,3556.5,0.1408]
[1754072186571,0.55,3556.3,3553.6,10.084073]
[1754072186730,0.55,3556.1,3555.5,0.1408]
[1754072186918,0.55,3555.9,3555.5,0.1408]
[1754072187117,0.447,3556.4,3554.2,1.6978]
[1754072187319,2.81183218,3556.4,3556.3,0.1408]
[1754072187650,2.81195275,3556.3,3555.6,0.1408]
[1754072187966,2.81254394,3555.5,3555.4,0.1408]
[1754072188117,2.81281625,3555.2,3553.9,2.8137963]
[1754072188318,7.56602134,3555.1,3554.1,2.8136448]
[1754072188571,4.718,3555.1,3554.4,3.0]
[1754072188774,4.718,3555.1,3555.0,0.1408]
[1754072188950,0.55,3555.6,3555.0,0.1408]
[1754072189149,0.86438714,3555.7,3555.0,0.1408]
[1754072189350,0.86438714,3555.7,3555.6,3.0]
[1754072189576,0.86438714,3555.7,3555.0,0.2961]
[1754072189577,0.86438714,3555.7,3555.0,0.1408]
[1754072189789,0.72358714,3555.7,3555.6,0.1408]
[1754072189995,10.0,3556.6,3555.7,3.0]
[1754072190291,4.718,3556.3,3556.0,3.0]
[1754072190458,4.718,3556.4,3556.2,3.0]
[1754072190773,4.718,3556.4,3556.0,3.0]
[1754072190975,4.718,3556.4,3553.9,16.849814]
[1754072190976,2.14864889,3556.3,3553.9,16.849814]
[1754072191176,0.1408,3555.8,3555.1,0.1408]
[1754072191377,4.718,3555.7,3554.9,2.81295742]
[1754072191566,4.718,3555.6,3554.9,2.81295742]
[1754072191768,4.718,3555.5,3555.0,3.0]
[1754072191968,4.718,3555.5,3555.0,2.81292903]
[1754072192166,5.165,3555.5,3555.4,0.1408]
[1754072192368,4.718,3555.5,3555.4,0.1408]
[1754072192544,5.715,3555.5,3555.4,0.1408]
[1754072192764,5.715,3555.5,3553.9,0.1553]
[1754072192765,5.715,3555.5,3555.3,0.1408]
[1754072192965,3.84478083,3555.4,3555.3,0.1408]
[1754072193151,5.89401542,3555.4,3555.2,0.1408]
[1754072193352,3.25970216,3555.3,3555.2,0.1408]
[1754072193564,0.69477276,3555.3,3555.2,0.1408]
[1754072193765,0.69477276,3555.3,3554.5,2.81333217]
[1754072193956,5.41277276,3555.3,3555.2,0.1408]
[1754072194380,8.22547492,3555.3,3555.2,0.1408]
[1754072194607,5.85977276,3555.3,3555.2,0.1408]
[1754072194749,8.67247492,3555.3,3555.2,0.1408]
[1754072194973,9.22247492,3555.3,3555.2,0.1408]
[1754072195605,0.55,3555.2,3554.2,2.8135655]
[1754072195806,2.81286039,3555.1,3555.0,0.1408]
[1754072196010,3.80986039,3555.1,3555.0,0.1408]
[1754072196211,0.55,3555.0,3553.5,5.0]
[1754072196415,0.447,3555.1,3553.6,3.0]
[1754072196580,4.719,3555.0,3553.7,0.1553]
[1754072196782,4.719,3555.0,3554.3,2.81349271]
[1754072196971,4.719,3555.0,3553.5,5.0]
[1754072196972,0.55,3554.8,3553.5,5.0]
[1754072197288,0.55,3554.6,3553.5,5.0]
[1754072197610,5.166,3554.5,3553.6,3.0]
[1754072197824,1.51711657,3554.4,3553.5,5.0]
[1754072197987,0.55,3554.0,3553.6,3.0]
[1754072198186,0.55,3554.2,3553.5,5.0]
[1754072198390,4.719,3554.3,3553.5,5.0]
[1754072198588,0.55,3553.8,3550.6,0.845167]
[1754072198900,0.55,3552.4,3552.3,0.13]
[1754072199095,4.72,3552.4,3552.3,0.13]
[1754072199734,8.53199831,3552.4,3552.3,0.13]
[1754072199960,9.66668216,3552.4,3552.3,0.13]
[1754072200173,11.33318216,3552.4,3552.3,0.13]
[1754072200314,0.55,3552.5,3552.3,0.13]
[1754072200663,10.23468578,3552.4,3552.3,0.13]
[1754072200868,10.20049831,3552.4,3552.3,0.13]
[1754072201159,7.3855,3552.4,3552.3,0.13]
[1754072201365,10.20049831,3552.4,3552.3,0.13]
[1754072201520,11.50203438,3552.4,3552.3,0.13]
[1754072202618,11.50203438,3552.4,3550.2,5.0]
[1754072202619,8.68703607,3552.4,3550.2,5.0]
[1754072202818,8.41997182,3551.5,3550.2,5.0]
[1754072203067,13.5915,3551.4,3550.3,3.0]
[1754072203218,0.997,3551.3,3550.2,5.0]
[1754072203420,3.36666338,3550.3,3550.2,5.0]
[1754072203614,2.81706011,3549.8,3548.0,0.19275931]
[1754072203816,5.331,3549.8,3548.0,0.19275931]
[1754072204046,10.26156011,3549.8,3548.0,0.19275931]
[1754072204268,2.81713947,3549.7,3548.0,0.19275931]
[1754072204415,7.4445,3549.8,3548.0,0.19275931]
[1754072204416,2.81769512,3549.0,3548.0,0.19275931]
[1754072204632,4.832,3548.9,3548.0,0.19275931]
[1754072204818,0.55,3548.8,3548.0,0.19275931]
[1754072205044,2.81840985,3548.1,3548.0,0.19275931]
[1754072205248,4.88223012,3548.1,3548.0,0.19275931]
[1754072205455,4.847,3548.1,3548.0,0.19275931]
[1754072205858,4.884,3548.2,3548.0,0.19275931]
[1754072206066,8.85760985,3548.1,3548.0,0.19275931]
[1754072206222,3.97360985,3548.1,3548.0,0.19275931]
[1754072206425,10.55300985,3548.1,3548.0,0.19275931]
[1754072206649,3.83280985,3548.1,3548.0,0.19275931]
[1754072206849,8.75803997,3548.1,3548.0,0.19275931]
[1754072207036,8.72280985,3548.1,3548.0,0.19275931]
[1754072207257,9.9261085,3548.1,3548.0,0.19275931]
[1754072207456,6.8643085,3548.1,3548.0,0.19275931]
[1754072207618,10.0749085,3548.1,3548.0,0.19275931]
[1754072207823,3.36872762,3547.7,3547.6,1e-08]
[1754072208031,0.6908,3547.7,3547.6,1e-08]
[1754072208268,8.40652762,3547.7,3547.6,1e-08]
[1754072208480,8.87092762,3547.7,3547.6,1e-08]
[1754072208774,1.1552,3547.7,3547.6,1e-08]
[1754072209068,8.72912762,3547.7,3547.6,1e-08]
[1754072209220,0.55,3547.7,3547.6,1e-08]
[1754072209421,3.83312762,3547.7,3547.6,1e-08]
[1754072209664,5.467,3547.7,3547.6,1e-08]
[1754072209823,4.918,3547.7,3547.6,1e-08]
[1754072210024,5.9324,3547.7,3547.6,1e-08]
[1754072210227,6.52564,3547.7,3547.6,1e-08]
[1754072210456,6.06124,3547.7,3547.6,1e-08]
[1754072210679,5.468,3547.7,3547.6,1e-08]
[1754072210836,10.0,3548.0,3547.6,1e-08]
[1754072211042,4.927,3547.9,3547.6,1e-08]